Cogmind - Beta 15 @@@ ROGUE MODE // 2025.07.03 @ 18:01:26 // Winter2022/Polymind Player: Annull999 Result: Destroyed by G-47 Trooper with Particle Gun Performance ------------- Evolutions (0) 0 Regions Visited (1) 200 Robots Destroyed (0) 0 Value Destroyed (0) 0 Prototype IDs (0) 0 Alien Tech Used (0) 0 Bonus (1065) 1065 TOTAL SCORE: 675 Bonus ------- Polymind Skill 1065 Cogmind --------- Core Integrity 0/250 Matter 0/0 Energy 25/25 System Corruption 0% Temperature Cool (9) Movement Core (50) Location -10/Materials Parts ------- > --- POWER (1) -------- (None) > --- PROPULSION (2) --- (None) > --- UTILITY (2) ------ Improved Terrain Scanner > --- WEAPON (1) ------- (None) > --- INVENTORY (0) ---- (None) Peak State ------------ > --- POWER ------------ Light Ion Engine > --- PROPULSION ------- Wheel Wheel > --- UTILITY ---------- Improved Terrain Scanner Seismic Detector > --- WEAPON ----------- Mining Laser > --- INVENTORY -------- (None) [Rating: 8] Favorites ----------- Power Light Ion Engine Engine Light Ion Engine Propulsion Wheel Wheel Wheel Flight Unit Flight Unit Utility Improved Terrain Scanner Device Improved Terrain Scanner Storage Small Storage Unit Weapon Mining Laser Ballistic Gun Light Assault Rifle Special Weapon Mining Laser Build | -11 -10 ------- Run | Yrd Mat Slots Evolved . | . . Power . | . . Propulsion . | . . Utility . | . . Weapon . | . . Parts Attached . | . . Power . | . . Engine . | . . Core . | . . Reactor . | . . Propulsion . | . . Treads . | . . Leg . | . . Wheel . | . . Hover . | . . Flight . | . . Utility . | . . Device . | . . Storage . | . . Processor . | . . Hackware . | . . Protection . | . . Artifact . | . . Weapon . | . . Energy Gun . | . . Energy Cannon . | . . Ballistic Gun . | . . Ballistic Cannon . | . . Launcher . | . . Special Weapon . | . . Impact Weapon . | . . Slashing Weapon . | . . Piercing Weapon . | . . Special Melee Weapon . | . . Unidentified Prototypes . | . . Parts Lost 6 | . 6 Power 2 | . 2 Propulsion 2 | . 2 Utility 1 | . 1 Weapon 1 | . 1 Highest Loss Streak 5 | . 5 To Critical Strikes . | . . Average Backups 1 | . 2 Power . | . . Propulsion . | . 1 Utility . | . . Weapon . | . . Tool/Special . | . . Unused Backups 12 | . 12 Power 1 | . 1 Propulsion 6 | . 6 Utility 3 | . 3 Weapon 1 | . 1 Tool/Special 1 | . 1 Average Slot Usage (%) 96 | . 96 Engine 18 | . 18 Wheel 36 | . 36 Flight 1 | . 1 Device 21 | . 21 Storage 16 | . 16 Peak Build Rating 8 | 8 8 Average Rating 6 | 7 5 On Entrance 2 | . 5 Naked Turns 2 | . 2 Heaviest Build 9 | 9 9 Greatest Support 32 | 32 32 Greatest Overweight (x) . | . . Average Overweight (x) . | . . Largest Inventory Capacity 4 | 4 4 Average Capacity 1 | . 3 Most Carried 4 | 4 4 Average Carried 1 | . 2 Final Capacity 4 | 4 . Final Carried 4 | 4 . Class Distribution -------------------- 80% | Recycler 13% | Tunneler 4% | Swarmer Dominant Class ---------------- Recycler | -10/Materials Resources | -11 -10 ----------- Run | Yrd Mat Matter Collected . | . . Remotely . | . . Salvage Created . | . . Parts . | . . Haulers Intercepted . | . . Recyclers Shooed . | . . Parts Field Recycled . | . . Retrieved Matter . | . . Parts Self-Destructed . | . . Prevented . | . . Kills | -11 -10 ------- Run | Yrd Mat Combat Hostiles Destroyed . | . . Classes Destroyed . | . . Best Kill Streak . | . . Combat Bots Only . | . . Max Kills in Single Turn . | . . Gunslinging . | . . Exploded . | . . Melee . | . . Uniques/NPCs Destroyed . | . . Combat | -11 -10 -------- Run | Yrd Mat Hostile Shots Fired 94 | . 94 Missed 29 | . 29 Hits 65 | . 65 Projectile 65 | . 65 Critical Strikes 1 | . 1 Damage Taken 576 | . 576 Core 256 | . 256 Absorbed by Shields . | . . Core Remaining (%) 100 | 100 . Volleys Fired 1 | . 1 Largest 1 | . 1 Hottest 20 | . 20 Shots Fired 1 | . 1 Gun 1 | . 1 Cannon . | . . Launcher . | . . Special . | . . Kinetic 1 | . 1 Thermal . | . . Explosive . | . . Electromagnetic . | . . Robot Hit Streak 1 | . 1 Robot Miss Streak . | . . Penetration Max . | . . Secondary Targets . | . . Shots Hit Robots 1 | . 1 Core Hits 3 | . 3 Critical Kills . | . . Critical Parts Destroyed . | . . Critical Strikes . | . . Melee Attacks . | . . Impact . | . . Slashing . | . . Piercing . | . . Sneak Attacks . | . . Combat Hostiles . | . . Follow-up Attacks . | . . Damage Inflicted 63 | . 63 Guns 7 | . 7 Cannons . | . . Explosions . | . . Melee . | . . Ramming 56 | . 56 Kinetic 7 | . 7 Thermal . | . . Explosive . | . . Electromagnetic . | . . Impact . | . . Slashing . | . . Piercing . | . . Highest Corruption . | . . Average Corruption . | . . Corruption Purged . | . . Corruption Blocked . | . . Overload Shots . | . . Overflow Damage . | . . Projectiles . | . . Explosions . | . . Melee . | . . Knockbacks . | . . Impact . | . . Kinetic . | . . Secondary . | . . Self-Inflicted Damage 23 | . 23 Shots . | . . Rammed 18 | . 18 Targets Rammed 18 | . 18 Kicked . | . . Crushed . | . . Highest Temperature 16 | . 16 Average Temperature 10 | . 10 Received Heat Transfer 42 | . 42 Siege Activations . | . . Martial Activations . | . . Shielding Activations . | . . Robots Disrupted . | . . Combat Hostiles . | . . Robots Corrupted . | . . Combat Hostiles . | . . Parts Fried . | . . Impact Corruptions . | . . Robots Melted . | . . Combat Hostiles . | . . Parts Melted . | . . Heat Transferred . | . . Parts Sabotaged . | . . Parts Stolen . | . . Parts Stripped . | . . Power Chain Reactions . | . . Alert | -11 -10 ------- Run | Yrd Mat Maximum Alert Level . | . . Low Security (%) 100 | 100 100 Level 1 . | . . Level 2 . | . . Level 3 . | . . Level 4 . | . . Level 5 . | . . High Security . | . . Max Security . | . . Peak Influence . | . . Initial . | . . Average . | . . Influence Increases . | . . Influence Decreases . | . . Squads Dispatched . | . . Investigation . | . . Extermination . | . . Reinforcement . | . . Assault . | . . Garrison . | . . Intercept . | . . Searches Triggered . | . . Construction Impeded . | . . Haulers Reinforced . | . . Active Scanning Responses . | . . Cargo Convoy Interrupts . | . . Stealth | -11 -10 --------- Run | Yrd Mat Distress Signals 3 | . 3 Communications Jammed . | . . Distress Signals . | . . Times Spotted 28 | . 28 Peak Tracking Total 8 | . 8 Tactical Retreats . | . . Traps | -11 -10 ------- Run | Yrd Mat Traps Triggered . | . . Indirectly . | . . Trap Hack Attempts . | . . Triggered . | . . Disarmed . | . . Reprogrammed . | . . Reused . | . . Traps Extracted . | . . Installed . | . . Triggered . | . . Machines | -11 -10 ---------- Run | Yrd Mat Machines Disabled . | . . Max in Single Turn . | . . Machines Repaired . | . . Machines Dismantled . | . . Machines Sabotaged . | . . Overloaded Fab Kills . | . . Hacking | -11 -10 --------- Run | Yrd Mat Machines Accessed 1 | . 1 Terminals 1 | . 1 Fabricators . | . . Repair Stations . | . . Recycling Units . | . . Scanalyzers . | . . Garrison Access . | . . Total Hacks 1 | . 1 Successful 1 | . 1 Failed . | . . Catastrophic . | . . Database Lockouts . | . . Manual 1 | . 1 Terminals 1 | . 1 Fabricators . | . . Repair Stations . | . . Recycling Units . | . . Scanalyzers . | . . Garrison Access . | . . Terminal Hacks 1 | . 1 Recycling Unit Index 1 | . 1 Fabricator Hacks . | . . Repair Station Hacks . | . . Recycling Unit Hacks . | . . Scanalyzer . | . . Garrison Access Hacks . | . . Unauthorized Hacks . | . . Terminals . | . . Fabricators . | . . Repair Stations . | . . Recycling Units . | . . Scanalyzers . | . . Garrison Access . | . . Data Cores Recovered . | . . Used . | . . Hacking Detections . | . . Full Trace Events . | . . Feedback Events . | . . Feedback Blocked . | . . Robot Schematics Acquired . | . . Robots Built . | . . Authchips . | . . Time . | . . Total Robot Build Rating . | . . Part Schematics Acquired . | . . Parts Built . | . . Authchips . | . . Time . | . . Total Part Build Rating . | . . Parts Repaired . | . . Time . | . . Parts Recycled . | . . Recycled Matter . | . . Retrieved Matter . | . . Retrieved Components . | . . Parts Scanalyzed . | . . Part Schematics Acquired . | . . Parts Damaged . | . . Bothacking | -11 -10 ------------ Run | Yrd Mat Used RIF Installer . | . . Robots Hacked 2 | . 2 Non-combat . | . . Combat 2 | . 2 Robot Hacks Applied 2 | . 2 find_shortcuts 2 | . 2 Relay Couplers Released . | . . Fabnet Peak Effective % . | . . Robots Rewired . | . . Allies Hacked . | . . Hacks Repelled . | . . Allies | -11 -10 -------- Run | Yrd Mat Total Allies . | . . Largest Group . | . . Highest-Rated Group . | . . Highest-Rated Ally . | . . Total Orders . | . . Ally Attacks . | . . Total Damage . | . . Kills . | . . Allies Corrupted . | . . Allies Melted . | . . Intel | -11 -10 ------- Run | Yrd Mat Active Infowar (turns) 284 | 272 12 Terrain 284 | 272 12 Seismic 280 | 272 8 Robot Analysis Total 3 | 2 1 Derelict Logs Recovered . | . . Drone Launches . | . . Drone Recoveries . | . . Exploration | -11 -10 ------------- Run | Yrd Mat Turns Passed 634 | 293 341 Spaces Moved 530 | 215 315 Core 9 | 4 5 Treads . | . . Legs . | . . Wheels 480 | 211 269 Hover . | . . Flight 41 | . 41 Fastest Speed 37 | 50 37 Average Speed 86 | 80 90 Slowest Speed 100 | 100 100 Overloaded Moves . | . . Propulsion Burnouts . | . . Robots Hopped 1 | . 1 Potential Cave-ins . | . . Cave-ins Triggered . | . . Exploration Rate (%) 37 | 15 59 Regions Visited 1 Branch Regions . Pre-discovered Areas . | . . Known Exits Taken . | . . Unknown Exits Taken 1 | 1 . Scrap Searched . | . . Spaces Dug . | . . Terrain Destroyed . | . . Melee . | . . Projectile . | . . AOE . | . . Terrain Rammed . | . . Walls Destroyed . | . . Machines Disabled . | . . Actions | -11 -10 --------- Run | Yrd Mat Total 705 | 334 371 Wait 15 | . 15 Move 527 | 214 313 Hop 1 | . 1 Pick Up 12 | 4 8 Fast Attach . | . . Attach . | . . Detach . | . . Swap . | . . Drop . | . . Fire 1 | . 1 Melee . | . . Ram 18 | . 18 Kick . | . . Crush . | . . Escape Stasis . | . . Rewire . | . . Trap . | . . Miscellaneous 131 | 116 15 Route ------- -11/Scrapyard -10/Materials (discovered 2 exits: [*Mat x2]) History --------- Turn | Location | Event 1 | -11/Scrapyard | Discovered new exit (range 3) 294 | -11/Scrapyard | Entered Materials 494 | -10/Materials | Discovered new exit (range 8) 548 | -10/Materials | Discovered new exit (range 13) 606 | -10/Materials | Core integrity fell below 50% 630 | -10/Materials | Core integrity fell below 20% 635 | -10/Materials | Destroyed by G-47 Trooper with Particle Gun Last Messages --------------- 00604_ R-06 Scavenger collects Lgt. Assault Rifle. 00605_ Slammed into S-10 Pest. 00605_ Mining Laser destroyed. 00608_ Slammed into S-10 Pest. 00609_ Destabilizing: Core damaged (-12). 00610_ Slammed into W-16 Scout. 00611_ Slammed into S-10 Pest. 00614_ Imp. Terrain Scanner broken. 00614_ Destabilizing: Short circuit. 00615_ Slammed into S-10 Pest. 00618_ Wheel destroyed. 00620_ Lgt. Ion Engine destroyed. 00620_ W-16 Scout sends out distress signal. 00625_ M-13 Machinist repairs S-10 Pest Flight Unit. 00626_ Wheel destroyed. 00629_ M-13 Machinist repairs S-10 Pest. 00630_ Seismic Detector destroyed. 00633_ S-10 Pest destroyed. 00634_ Slammed into M-13 Machinist. 00635_ W-16 Scout sends out distress signal. Map ----- +----------------------------------------------------+ | ?????????????????????????#########+########??# | | ???????????????????????????# """ #???# = | | ????????????????????????!??# "Y" #???# | | ???????????????????????????# #???# | | ???????????????????????????# """ """ #???# | | ???????????????????????????# """ """ #???# | | ???????????????????????????# [ """ """ #???# | | ???????????????????????=???#############?????# "" | | ???????????????????????###+#?????????????????# "" | | ???????????????????????# ?????????????????# "" | | ????????????????????#### ????????? ??????# "" | | ???????????????????##! ???????? ?????# "" | | ???????????????????#! #?????????# ##### "" | | ???????????????????#! #???|?!???# "" | | ???????????????????#! #???|?!?"?# | | ????????????????????! #?????????# | | ?????????????????????! #?????????# | | ???????????????????????# #########?## ###### | | ????????? ?????????????# # ####+####### | | ???????????????????????# + ## # | | ???????????????????????# # ## ! / / | | ???????????????????????# ######+### # | | ?????????????????????### ###### ### # | | ??????????????????####%# = % # """ # | | ??????????????????# m%%swg k """ ! ||# | | ??????????????????###### t% g #?""" |!# | | ????????????????? ###### #? # | | ????????????????######## #????# ########### | | ???????????????????????# #????# ## # | | ???????????????????????# r #????# ## "" # | | ???????????????????????# #????# ## Y" # | | ???????????????????????# #????# ## "" # | | ??????????????????????? ????# ## # | | ??????????????????????# T ????# ## # ^^ | | ??????????????????????+ "" ????# ## # | | ??????????????????????# #???# ## # | | ??????????????????????# ? #???# #######/### | | ??????????????????????## ? ##???# | | ?????????????????????????? #????# | | ?????????????????????????? ?????# | | ????????????????????????????????##+############### | | ????????????????????????????????????!!???????????? | | ????????????????????????????????????!!???????????? | | ????????????????????????????????????!!???????????? | | ?????????????????????????????????????????????????? | | ?????????????????????????????????????????????????? | | ?????????????????????????????????????????????????? | | ?????????????????????????????????????????????????? | | ?????????????????????????????????????????????????? | | | +----------------------------------------------------+ Best States ------------- Heat Dissipation 18 Energy Generation 15 Energy Capacity 75 Matter Stores 88 Matter Capacity 100 Sight Range 16 Terrain Scan Range 16 Terrain Scan Density 10 Evasion (%) 62 Item Schematics ----------------- None Robot Schematics ------------------ None Fabricated ------------ Nothing Repaired ---------- Nothing Alien Tech Used ----------------- None Achievements -------------- Armchair Analyst Challenges ------------ None Polymind | -11 -10 ---------- Run | Yrd Mat Hosts 5 | 2 3 Combat Hostiles 2 | . 2 Allies . | . . Unique Host Classes 3 | 2 1 Average Host Suspicion 22 | 1 40 Unsuspicious Activity 659 | 584 75 Returns to Shadow . | . . Fuzzy Dispatches . | . . Protomatter Created 4 | . 4 Used 27 | 10 17 Decayed . | . . Highest Spend 6 | 5 6 Game ------ Seed ExperimentalDynamicMachine Manual? 0 Play Time 00:10:37 Cumulative 19.8 hours Start 2025.07.03 @ 17:48:52 End 2025.07.03 @ 18:01:26 Sessions 1 Manual Loads 0 Difficulty Rogue Special Mode Winter2022/Polymind Game No. 34 Rogue 34 Adventurer 0 Explorer 0 Win Type - Total 0 Types 0/0/0/0/0/0/0/0/0/0 Lore% 6 Gallery% 17 Achievement% 19 Wizard Run 0 Options --------- Layout 0 ASCII 0 Keyboard 0 Movement Numpad Keybinds 0 Fullscreen 2 Font 24/Smallcaps Map View 76x50 Zoom Use 0% Tactical HUD 1 Map Filters NONE Filters NONE Steam X RUN: afe78270-f921-41ad-949d-99b943f8cc6a